fUST/lending_fUST_20240327
["ID","MTS","AMOUNT","RATE_DAILY","PERIOD"]
[320696036,1711502850413,208.19500687,0.00019176,30]
[320696215,1711503040832,-1610.84561279,0.0001849,2]
[320696216,1711503040842,-155.42954601,0.0001849,2]
[320696217,1711503040852,-2605.93322734,0.00018491,2]
[320696218,1711503040862,-155.01240099,0.00018491,2]
[320696219,1711503040872,-620.07157419,0.00018492,2]
[320696220,1711503040885,-4787.79166127,0.00018492,2]
[320696221,1711503040896,-14140.39978794,0.00018492,2]
[320696285,1711503043964,-25517.18657608,0.00018492,2]
[320696287,1711503043974,-506.69012708,0.00018644,2]
[320696289,1711503043984,-2000.0,0.00018744,2]
[320696291,1711503043995,-506.69012708,0.00018753,2]
[320696293,1711503044004,-506.69012708,0.00018861,2]
[320696295,1711503044014,-620.0655633,0.00018945,2]
[320696297,1711503044024,-506.69012708,0.0001897,2]
[320696299,1711503044033,-506.69012708,0.00019078,2]
[320696301,1711503044042,-1081.40589704,0.00019176,2]
[320696303,1711503044052,-180.26624286,0.00019176,2]
[320696305,1711503044062,-305.17864111,0.00019176,2]
[320696307,1711503044072,-192.34932326,0.00019176,2]
[320696309,1711503044081,-170.63807538,0.00019176,2]
[320696311,1711503044090,-299.05552718,0.00019176,2]
[320696313,1711503044100,-307.04870363,0.00019176,2]
[320696315,1711503044109,-163.93183996,0.00019176,2]
[320696317,1711503044119,-487.79312888,0.00019177,2]
[320696319,1711503044128,-1995.0873076,0.00019177,2]
[320696321,1711503044137,-994.86445125,0.00019177,2]
[320696323,1711503044146,-437.35894058,0.00019177,2]
[320696325,1711503044156,-500.0,0.00019178,2]
[320696327,1711503044165,-500.0,0.00019178,2]
[320696329,1711503044174,-500.0,0.00019178,2]
[320696331,1711503044183,-500.0,0.00019178,2]
[320696333,1711503044193,-500.0,0.00019178,2]
[320696335,1711503044202,-540.42,0.00019178,2]
[320696337,1711503044211,-500.0,0.00019178,2]
[320696339,1711503044220,-500.0,0.00019178,2]
[320696341,1711503044229,-500.0,0.00019178,2]
[320696343,1711503044238,-177.51192555,0.00019178,2]
[320696345,1711503044249,-500.0,0.00019178,2]
[320696347,1711503044259,-500.0,0.00019178,2]
[320696349,1711503044268,-500.0,0.00019178,2]
[320696351,1711503044277,-500.0,0.00019178,2]
[320696353,1711503044287,-641.82,0.00019178,2]
[320696355,1711503044296,-500.0,0.00019178,2]
[320696357,1711503044305,-500.0,0.00019178,2]
[320696359,1711503044314,-551.8,0.00019178,2]
[320696361,1711503044323,-500.0,0.00019178,2]
[320696363,1711503044333,-500.0,0.00019178,2]
[320696365,1711503044342,-500.0,0.00019178,2]
[320696367,1711503044353,-500.0,0.00019178,2]
[320696369,1711503044363,-500.0,0.00019178,2]
[320696371,1711503044372,-500.0,0.00019178,2]
[320696373,1711503044381,-500.0,0.00019178,2]
[320696375,1711503044390,-500.0,0.00019178,2]
[320696377,1711503044400,-500.0,0.00019178,2]
[320696379,1711503044409,-500.0,0.00019178,2]
[320696381,1711503044419,-489.89406017,0.00019178,2]
[320696383,1711503044428,-500.0,0.00019178,2]
[320696385,1711503044438,-1161.14,0.00019178,2]
[320696387,1711503044447,-500.0,0.00019178,2]
[320696389,1711503044460,-500.0,0.00019178,2]
[320696391,1711503044470,-500.0,0.00019178,2]
[320696393,1711503044479,-500.0,0.00019178,2]
[320696395,1711503044489,-722.17,0.00019178,2]
[320696397,1711503044503,-500.0,0.00019178,2]
[320696400,1711503044513,-500.0,0.00019178,2]
[320696402,1711503044524,-500.0,0.00019178,2]
[320696403,1711503044534,-765.75,0.00019178,2]
[320696406,1711503044544,-613.55317735,0.00019178,2]
[320696408,1711503044554,-500.0,0.00019178,2]
[320696410,1711503044564,-500.0,0.00019178,2]
[320696412,1711503044574,-500.0,0.00019178,2]
[320696414,1711503044583,-500.0,0.00019178,2]
[320696416,1711503044593,-500.0,0.00019178,2]
[320696418,1711503044602,-207.17246062,0.00019178,2]
[320696419,1711503044613,-500.0,0.00019178,2]
[320696421,1711503044622,-1881.61,0.00019178,2]
[320696423,1711503044631,-500.0,0.00019178,2]
[320696425,1711503044641,-500.0,0.00019178,2]
[320696428,1711503044650,-500.0,0.00019178,2]
[320696430,1711503044660,-500.0,0.00019178,2]
[320696431,1711503044669,-500.0,0.00019178,2]
[320696433,1711503044679,-1736.4,0.00019178,2]
[320696435,1711503044689,-500.0,0.00019178,2]
[320696438,1711503044699,-500.0,0.00019178,2]
[320696439,1711503044709,-500.0,0.00019178,2]
[320696441,1711503044719,-500.0,0.00019178,2]
[320696444,1711503044729,-500.0,0.00019178,2]
[320696445,1711503044739,-500.0,0.00019178,2]
[320696447,1711503044749,-500.0,0.00019178,2]
[320696450,1711503044760,-648.95,0.00019178,2]
[320696451,1711503044770,-970.58,0.00019178,2]
[320696454,1711503044780,-500.0,0.00019178,2]
[320696455,1711503044789,-25788.48,0.00019178,2]
[320696458,1711503044799,-577.37,0.00019178,2]
[320696459,1711503044808,-1066.8,0.00019178,2]
[320696461,1711503044818,-502.88,0.00019178,2]
[320696463,1711503044828,-355.36289384,0.00019178,2]
[320696465,1711503044837,-5721.6,0.00019178,2]
[320696467,1711503044847,-2942.47,0.00019178,2]
[320696469,1711503044856,-500.0,0.00019178,2]
[320696471,1711503044865,-500.0,0.00019178,2]
[320696473,1711503044875,-1701.23,0.00019178,2]
[320696475,1711503044884,-1735.39,0.00019178,2]
[320696477,1711503044893,-500.0,0.00019178,2]
[320696479,1711503044903,-500.0,0.00019178,2]
[320696481,1711503044913,-894.41,0.00019178,2]
[320696483,1711503044922,-500.0,0.00019178,2]
[320696485,1711503044932,-500.0,0.00019178,2]
[320696487,1711503044941,-572.83,0.00019178,2]
[320696489,1711503044950,-3885.02,0.00019178,2]
[320696491,1711503044960,-4866.95,0.00019178,2]
[320696493,1711503044969,-500.0,0.00019178,2]
[320696495,1711503044980,-500.0,0.00019178,2]
[320696497,1711503044989,-1680.86,0.00019178,2]
[320696499,1711503045000,-24021.65,0.00019178,2]
[320696501,1711503045009,-500.0,0.00019178,2]
[320696503,1711503045019,-249.12712315,0.00019178,2]
[320696505,1711503045029,-554.63,0.00019178,2]
[320696508,1711503045040,-500.0,0.00019178,2]
[320696510,1711503045050,-1837.15,0.00019178,2]
[320696511,1711503045060,-547.57,0.00019178,2]
[320696513,1711503045070,-500.0,0.00019178,2]
[320696515,1711503045079,-500.0,0.00019178,2]
[320696517,1711503045089,-500.0,0.00019178,2]
[320696519,1711503045099,-500.0,0.00019178,2]
[320696521,1711503045108,-500.0,0.00019178,2]
[320696523,1711503045118,-500.0,0.00019178,2]
[320696525,1711503045131,-500.0,0.00019178,2]
[320696527,1711503045140,-289.81379151,0.00019178,2]
[320696529,1711503045150,-500.0,0.00019178,2]
[320696531,1711503045160,-500.0,0.00019178,2]
[320696533,1711503045170,-500.0,0.00019178,2]
[320696535,1711503045179,-597.35,0.00019178,2]
[320696537,1711503045189,-500.0,0.00019178,2]
[320696539,1711503045200,-500.0,0.00019178,2]
[320696541,1711503045210,-500.0,0.00019178,2]
[320696543,1711503045220,-9018.13,0.00019178,2]
[320696546,1711503045231,-500.0,0.00019178,2]
[320696547,1711503045240,-5263.8,0.00019178,2]
[320696549,1711503045252,-525.91498456,0.00019178,2]
[320696551,1711503045262,-4469.69,0.00019178,2]
[320696553,1711503045271,-2382.34,0.00019178,2]
[320696555,1711503045281,-558.44,0.00019178,2]
[320696557,1711503045290,-296.5691158,0.00019178,2]
[320696560,1711503045301,-2419.16,0.00019178,2]
[320696562,1711503045313,-500.0,0.00019178,2]
[320696564,1711503045322,-500.0,0.00019178,2]
[320696566,1711503045332,-500.0,0.00019178,2]
[320696568,1711503045340,-2553.53,0.00019178,2]
[320696570,1711503045349,-500.0,0.00019178,2]
[320696572,1711503045358,-500.0,0.00019178,2]
[320696574,1711503045367,-500.0,0.00019178,2]
[320696576,1711503045376,-500.0,0.00019178,2]
[320696577,1711503045385,-500.0,0.00019178,2]
[320696579,1711503045395,-500.0,0.00019178,2]
[320696581,1711503045405,-926.61,0.00019178,2]
[320696583,1711503045414,-500.0,0.00019178,2]
[320696585,1711503045423,-2017.03,0.00019178,2]
[320696587,1711503045433,-502.57,0.00019178,2]
[320696589,1711503045442,-500.22294926,0.00019178,2]
[320696592,1711503045453,-500.0,0.00019178,2]
[320696593,1711503045464,-523.21,0.00019178,2]
[320696595,1711503045473,-760.56,0.00019178,2]
[320696597,1711503045482,-642.36308994,0.00019178,2]
[320696599,1711503045491,-500.15263875,0.00019178,2]
[320696601,1711503045504,-1243.72,0.00019178,2]
[320696603,1711503045513,-500.0,0.00019178,2]
[320696605,1711503045524,-825.38,0.00019178,2]
[320696607,1711503045534,-500.0,0.00019178,2]
[320696609,1711503045543,-500.0,0.00019178,2]
[320696611,1711503045552,-500.0,0.00019178,2]
[320696613,1711503045560,-500.0,0.00019178,2]
[320696615,1711503045569,-170.042482,0.00019178,2]
[320696617,1711503045579,-165.609688,0.00019178,2]
[320696619,1711503045588,-25345.17,0.000194,2]
[320696621,1711503045597,-8432.193089,0.000195,2]
[320696637,1711503045734,-153.0,0.000198,2]
[320696639,1711503045744,-153.0,0.000198,2]
[320696640,1711503045754,-153.0,0.000198,2]
[320696642,1711503045763,-153.0,0.000198,2]
[320696644,1711503045772,-153.0,0.000198,2]
[320696646,1711503045781,-306.0,0.000198,2]
[320696648,1711503045790,-153.0,0.000198,2]
[320696650,1711503045799,-153.0,0.000198,2]
[320696652,1711503045809,-153.0,0.000198,2]
[320696654,1711503045819,-261.3101085,0.000198,2]
[320696656,1711503045829,-7760.73872435,0.0001988,2]
[320696658,1711503045839,-236.85437915,0.000199,2]
[320696660,1711503045848,-2648.2985011,0.000199,2]
[320696662,1711503045857,-7521.11812801,0.0001998,2]
[320696664,1711503045866,-5841.25162819,0.0001999,2]
[320696666,1711503045875,-249.60814488,0.0002,2]
[320696668,1711503045885,-780.54671569,0.0002,2]
[320696670,1711503045895,-156.42964003,0.0002,2]
[320696672,1711503045904,-239.56257658,0.0002,2]
[320696674,1711503045914,-155.00930056,0.0002,2]
[320696676,1711503045923,-684.16921587,0.0002,2]
[320696678,1711503045932,-200.0,0.0002,2]
[320696680,1711503045942,-2000.0,0.00020229,2]
[320696682,1711503045952,-207.746,0.00020274,2]
[320696684,1711503045961,-500.0,0.000205,2]
[320696686,1711503045970,-377.87069237,0.00021,2]
[320696688,1711503045980,-195.968474,0.00021,2]
[320696690,1711503045989,-153.0,0.00021273,2]
[320696692,1711503045999,-201.9950273,0.00021273,2]
[320696694,1711503046009,-153.0,0.00021273,2]
[320696696,1711503046020,-153.0,0.00021273,2]
[320696698,1711503046029,-153.0,0.00021273,2]
[320696700,1711503046038,-201.9950273,0.00021273,2]
[320696702,1711503046047,-153.0,0.00021273,2]
[320696704,1711503046056,-153.0,0.00021273,2]
[320696706,1711503046066,-201.9950273,0.00021273,2]
[320696708,1711503046075,-153.0,0.00021273,2]
[320696710,1711503046085,-153.0,0.00021273,2]
[320696712,1711503046094,-153.0,0.00021273,2]
[320696714,1711503046103,-153.0,0.00021273,2]
[320696716,1711503046112,-153.0,0.00021273,2]
[320696717,1711503046122,-201.9950273,0.00021273,2]
[320696719,1711503046131,-153.0,0.00021273,2]
[320696721,1711503046140,-153.0,0.00021273,2]
[320696723,1711503046149,-201.9950273,0.00021273,2]
[320696725,1711503046159,-153.0,0.00021273,2]
[320696727,1711503046168,-153.0,0.00021273,2]
[320696729,1711503046177,-153.0,0.00021273,2]
[320696731,1711503046186,-153.0,0.00021273,2]
[320696733,1711503046195,-153.0,0.00021273,2]
[320696735,1711503046205,-201.9950273,0.00021273,2]
[320696737,1711503046214,-153.0,0.00021273,2]
[320696739,1711503046223,-153.0,0.00021273,2]
[320696741,1711503046233,-201.9950273,0.00021273,2]
[320696743,1711503046241,-153.0,0.00021273,2]
[320696744,1711503046252,-153.0,0.00021273,2]
[320696746,1711503046262,-201.9950273,0.00021273,2]
[320696748,1711503046271,-153.0,0.00021273,2]
[320696750,1711503046280,-153.0,0.00021273,2]
[320696752,1711503046289,-153.0,0.00021273,2]
[320696754,1711503046298,-153.0,0.00021273,2]
[320696756,1711503046307,-201.9950273,0.00021273,2]
[320696758,1711503046317,-153.0,0.00021273,2]
[320696760,1711503046326,-201.5632913,0.00021273,2]
[320696761,1711503046336,-153.0,0.00021273,2]
[320696762,1711503046345,-153.0,0.00021273,2]
[320696763,1711503046355,-153.0,0.00021273,2]
[320696764,1711503046365,-153.0,0.00021273,2]
[320696765,1711503046376,-153.0,0.00021273,2]
[320696766,1711503046386,-153.0,0.00021273,2]
[320696767,1711503046395,-153.0,0.00021273,2]
[320696768,1711503046403,-153.0,0.00021273,2]
[320696769,1711503046413,-153.0,0.00021273,2]
[320696770,1711503046423,-154.6218583,0.00021273,2]
[320696771,1711503046433,-153.0,0.00021273,2]
[320696772,1711503046443,-2000.0,0.00021713,2]
[320696773,1711503046454,-468.38041801,0.00021915,2]
[320696774,1711503046466,-155.4308161,0.00021915,2]
[320696775,1711503046476,-400.0,0.00021915,2]
[320696776,1711503046487,-299.17163132,0.00021915,2]
[320696777,1711503046499,-309.32788261,0.00021916,2]
[320696778,1711503046508,-500.0,0.00021917,2]
[320696779,1711503046518,-500.0,0.00021917,2]
[320696780,1711503046529,-500.0,0.00021917,2]
[320696782,1711503046538,-500.0,0.00021917,2]
[320696784,1711503046549,-540.42,0.00021917,2]
[320696785,1711503046559,-500.0,0.00021917,2]
[320696787,1711503046568,-500.0,0.00021917,2]
[320696789,1711503046578,-500.0,0.00021917,2]
[320696791,1711503046589,-500.0,0.00021917,2]
[320696793,1711503046600,-500.0,0.00021917,2]
[320696795,1711503046610,-500.0,0.00021917,2]
[320696797,1711503046620,-500.0,0.00021917,2]
[320696799,1711503046632,-641.82,0.00021917,2]
[320696801,1711503046642,-500.0,0.00021917,2]
[320696803,1711503046654,-500.0,0.00021917,2]
[320696805,1711503046664,-551.8,0.00021917,2]
[320696807,1711503046674,-500.0,0.00021917,2]
[320696809,1711503046684,-500.0,0.00021917,2]
[320696810,1711503046694,-500.0,0.00021917,2]
[320696812,1711503046704,-500.0,0.00021917,2]
[320696814,1711503046713,-500.0,0.00021917,2]
[320696816,1711503046723,-513.61458037,0.00021917,2]
[320696818,1711503046733,-500.0,0.00021917,2]
[320696820,1711503046743,-500.0,0.00021917,2]
[320696822,1711503046760,-500.0,0.00021917,2]
[320696824,1711503046771,-500.0,0.00021917,2]
[320696826,1711503046781,-500.0,0.00021917,2]
[320696828,1711503046792,-1161.14,0.00021917,2]
[320696830,1711503046802,-500.0,0.00021917,2]
[320696832,1711503046812,-500.0,0.00021917,2]
[320696834,1711503046823,-500.0,0.00021917,2]
[320696835,1711503046833,-500.0,0.00021917,2]
[320696837,1711503046843,-722.17,0.00021917,2]
[320696839,1711503046852,-500.0,0.00021917,2]
[320696841,1711503046862,-500.0,0.00021917,2]
[320696843,1711503046871,-500.0,0.00021917,2]
[320696845,1711503046880,-765.75,0.00021917,2]
[320696847,1711503046891,-500.0,0.00021917,2]
[320696849,1711503046900,-500.0,0.00021917,2]
[320696850,1711503046909,-500.0,0.00021917,2]
[320696852,1711503046918,-500.0,0.00021917,2]
[320696854,1711503046927,-500.0,0.00021917,2]
[320696856,1711503046937,-500.0,0.00021917,2]
[320696858,1711503046946,-1881.61,0.00021917,2]
[320696860,1711503046955,-500.0,0.00021917,2]
[320696862,1711503046964,-500.0,0.00021917,2]
[320696864,1711503046974,-500.0,0.00021917,2]
[320696865,1711503046983,-613.95901028,0.00021917,2]
[320696866,1711503046994,-500.0,0.00021917,2]
[320696868,1711503047005,-1736.4,0.00021917,2]
[320696869,1711503047015,-500.0,0.00021917,2]
[320696870,1711503047025,-500.0,0.00021917,2]
[320696871,1711503047035,-500.0,0.00021917,2]
[320696872,1711503047045,-161.47546126,0.00021917,2]
[320696873,1711503047054,-500.0,0.00021917,2]
[320696874,1711503047065,-648.95,0.00021917,2]
[320696875,1711503047075,-970.58,0.00021917,2]
[320696876,1711503047084,-500.0,0.00021917,2]
[320696877,1711503047093,-25788.48,0.00021917,2]
[320696878,1711503047103,-577.37,0.00021917,2]
[320696879,1711503047112,-1066.8,0.00021917,2]
[320696880,1711503047122,-502.88,0.00021917,2]
[320696881,1711503047131,-5721.6,0.00021917,2]
[320696882,1711503047142,-2942.47,0.00021917,2]
[320696883,1711503047151,-500.0,0.00021917,2]
[320696884,1711503047161,-500.0,0.00021917,2]
[320696885,1711503047172,-1701.23,0.00021917,2]
[320696886,1711503047181,-1735.39,0.00021917,2]
[320696887,1711503047190,-500.0,0.00021917,2]
[320696888,1711503047200,-894.41,0.00021917,2]
[320696889,1711503047209,-500.0,0.00021917,2]
[320696890,1711503047219,-500.0,0.00021917,2]
[320696892,1711503047228,-572.83,0.00021917,2]
[320696894,1711503047237,-3885.02,0.00021917,2]
[320696896,1711503047248,-4866.95,0.00021917,2]
[320696898,1711503047257,-457.01422074,0.00021917,2]
[320696900,1711503047268,-500.0,0.00021917,2]
[320696902,1711503047277,-1680.86,0.00021917,2]
[320696904,1711503047286,-24021.65,0.00021917,2]
[320696906,1711503047295,-233.1942866,0.00021917,2]
[320696908,1711503047305,-554.63,0.00021917,2]
[320696910,1711503047314,-1837.15,0.00021917,2]
[320696912,1711503047323,-547.57,0.00021917,2]
[320696914,1711503047332,-500.0,0.00021917,2]
[320696916,1711503047341,-500.0,0.00021917,2]
[320696918,1711503047351,-500.0,0.00021917,2]
[320696920,1711503047360,-500.0,0.00021917,2]
[320696922,1711503047369,-500.0,0.00021917,2]
[320696924,1711503047379,-500.0,0.00021917,2]
[320696926,1711503047387,-597.35,0.00021917,2]
[320696928,1711503047397,-500.0,0.00021917,2]
[320696930,1711503047406,-500.0,0.00021917,2]
[320696932,1711503047416,-235.64530025,0.00021917,2]
[320696934,1711503047425,-9018.13,0.00021917,2]
[320696936,1711503047434,-500.0,0.00021917,2]
[320696938,1711503047444,-5263.8,0.00021917,2]
[320696940,1711503047455,-4469.69,0.00021917,2]
[320696942,1711503047466,-2382.34,0.00021917,2]
[320696944,1711503047476,-558.44,0.00021917,2]
[320696946,1711503047485,-2419.16,0.00021917,2]
[320696948,1711503047495,-500.0,0.00021917,2]
[320696949,1711503047505,-500.0,0.00021917,2]
[320696951,1711503047516,-500.0,0.00021917,2]
[320696953,1711503047525,-2553.53,0.00021917,2]
[320696955,1711503047535,-500.0,0.00021917,2]
[320696957,1711503047545,-500.0,0.00021917,2]
[320696959,1711503047554,-500.0,0.00021917,2]
[320696961,1711503047563,-500.0,0.00021917,2]
[320696963,1711503047572,-926.61,0.00021917,2]
[320696965,1711503047581,-510.92131612,0.00021917,2]
[320696967,1711503047591,-2017.03,0.00021917,2]
[320696969,1711503047600,-502.57,0.00021917,2]
[320696971,1711503047609,-500.0,0.00021917,2]
[320696973,1711503047618,-523.21,0.00021917,2]
[320696975,1711503047627,-760.56,0.00021917,2]
[320696977,1711503047636,-1243.72,0.00021917,2]
[320696978,1711503047646,-501.53019755,0.00021917,2]
[320696979,1711503047655,-825.38,0.00021917,2]
[320696980,1711503047664,-357.92624565,0.00021917,2]
[320696981,1711503047674,-500.0,0.00021917,2]
[320696983,1711503047683,-500.0,0.00021917,2]
[320696985,1711503047693,-500.0,0.00021917,2]
[320696987,1711503047702,-166.666666,0.00021918,2]
[320696989,1711503047711,-36511.1346712,0.00021918,2]
[320696991,1711503047721,-2000.0,0.00021918,10]
[320696993,1711503047730,-8533.38229305,0.00022,2]
[320696995,1711503047739,-157.80762119,0.00022,2]
[320696997,1711503047749,-1684.61575505,0.0002217,2]
[320696999,1711503047758,-166.666666,0.00022431,2]
[320697001,1711503047767,-307.1961117,0.00022704,2]
[320697003,1711503047777,-166.666666,0.00022944,2]
[320697005,1711503047786,-2794.178982,0.00023197,2]
[320697007,1711503047795,-170.011583,0.00023288,2]
[320697009,1711503047804,-170.011583,0.00023288,61]
[320697011,1711503047813,-170.011583,0.00023288,120]
[320697013,1711503047822,-166.666666,0.00023456,2]
[320697015,1711503047831,-166.666666,0.00023969,2]
[320697017,1711503047840,-166.666666,0.00024482,2]
[320697019,1711503047850,-2000.0,0.00024557,2]
[320697021,1711503047859,-500.0,0.00024657,2]
[320697023,1711503047868,-500.0,0.00024657,2]
[320697025,1711503047879,-500.0,0.00024657,2]
[320697026,1711503047889,-509.75650882,0.00024657,2]
[320697027,1711503047898,-540.42,0.00024657,2]
[320697028,1711503047907,-500.0,0.00024657,2]
[320697029,1711503047916,-500.0,0.00024657,2]
[320697030,1711503047926,-255.34573748,0.00024657,2]
[320697031,1711503047935,-500.0,0.00024657,2]
[320697032,1711503047944,-500.0,0.00024657,2]
[320697033,1711503047953,-500.0,0.00024657,2]
[320697034,1711503047962,-500.0,0.00024657,2]
[320697035,1711503047972,-641.82,0.00024657,2]
[320697036,1711503047981,-500.0,0.00024657,2]
[320697037,1711503047991,-551.8,0.00024657,2]
[320697038,1711503048001,-500.0,0.00024657,2]
[320697040,1711503048010,-500.0,0.00024657,2]
[320697042,1711503048019,-500.0,0.00024657,2]
[320697044,1711503048028,-500.0,0.00024657,2]
[320697046,1711503048037,-500.0,0.00024657,2]
[320697048,1711503048046,-500.0,0.00024657,2]
[320697050,1711503048055,-500.0,0.00024657,2]
[320697052,1711503048064,-500.0,0.00024657,2]
[320697053,1711503048084,-500.0,0.00024657,2]
[320697055,1711503048093,-500.0,0.00024657,2]
[320697057,1711503048102,-1161.14,0.00024657,2]
[320697059,1711503048111,-500.0,0.00024657,2]
[320697061,1711503048120,-500.0,0.00024657,2]
[320697063,1711503048129,-500.0,0.00024657,2]
[320697065,1711503048138,-500.0,0.00024657,2]
[320697067,1711503048147,-722.17,0.00024657,2]
[320697069,1711503048157,-500.0,0.00024657,2]
[320697071,1711503048165,-500.0,0.00024657,2]
[320697072,1711503048174,-500.0,0.00024657,2]
[320697074,1711503048184,-765.75,0.00024657,2]
[320697076,1711503048194,-500.0,0.00024657,2]
[320697078,1711503048203,-500.0,0.00024657,2]
[320697080,1711503048212,-500.0,0.00024657,2]
[320697082,1711503048222,-500.0,0.00024657,2]
[320697084,1711503048231,-500.0,0.00024657,2]
[320697086,1711503048241,-500.0,0.00024657,2]
[320697088,1711503048257,-1881.61,0.00024657,2]
[320697090,1711503048266,-500.0,0.00024657,2]
[320697092,1711503048275,-500.0,0.00024657,2]
[320697094,1711503048285,-500.0,0.00024657,2]
[320697096,1711503048295,-500.0,0.00024657,2]
[320697098,1711503048304,-1736.4,0.00024657,2]
[320697099,1711503048314,-500.0,0.00024657,2]
[320697101,1711503048323,-500.0,0.00024657,2]
[320697103,1711503048333,-500.0,0.00024657,2]
[320697105,1711503048342,-430.18804975,0.00024657,2]
[320697107,1711503048351,-648.95,0.00024657,2]
[320697109,1711503048361,-970.58,0.00024657,2]
[320697120,1711503048370,-500.0,0.00024657,2]
[320697123,1711503048478,-25788.48,0.00024657,2]
[320697125,1711503048489,-577.37,0.00024657,2]
[320697127,1711503048501,-1066.8,0.00024657,2]
[320697129,1711503048511,-502.88,0.00024657,2]
[320697130,1711503048521,-5721.6,0.00024657,2]
[320697132,1711503048534,-2942.47,0.00024657,2]
[320697134,1711503048545,-475.06563294,0.00024657,2]
[320697136,1711503048556,-546.43,0.00024657,2]
[320697138,1711503048566,-500.0,0.00024657,2]
[320697140,1711503048577,-1701.23,0.00024657,2]
[320697142,1711503048588,-1735.39,0.00024657,2]
[320697144,1711503048599,-500.0,0.00024657,2]
[320697146,1711503048609,-894.41,0.00024657,2]
[320697148,1711503048621,-500.0,0.00024657,2]
[320697150,1711503048631,-500.0,0.00024657,2]
[320697152,1711503048642,-572.83,0.00024657,2]
[320697154,1711503048653,-3885.02,0.00024657,2]
[320697156,1711503048664,-4866.95,0.00024657,2]
[320697158,1711503048674,-500.0,0.00024657,2]
[320697160,1711503048684,-1680.86,0.00024657,2]
[320697162,1711503048699,-24021.65,0.00024657,2]
[320697164,1711503048709,-554.63,0.00024657,2]
[320697166,1711503048719,-1837.15,0.00024657,2]
[320697168,1711503048730,-547.57,0.00024657,2]
[320697170,1711503048739,-500.0,0.00024657,2]
[320697172,1711503048750,-500.0,0.00024657,2]
[320697174,1711503048760,-500.0,0.00024657,2]
[320697176,1711503048770,-167.93435172,0.00024657,2]
[320697178,1711503048780,-500.0,0.00024657,2]
[320697180,1711503048789,-597.35,0.00024657,2]
[320697182,1711503048799,-500.0,0.00024657,2]
[320697184,1711503048808,-500.0,0.00024657,2]
[320697186,1711503048818,-9018.13,0.00024657,2]
[320697188,1711503048827,-500.0,0.00024657,2]
[320697190,1711503048836,-5263.8,0.00024657,2]
[320697192,1711503048845,-4469.69,0.00024657,2]
[320697194,1711503048854,-2382.34,0.00024657,2]
[320697196,1711503048863,-558.44,0.00024657,2]
[320697198,1711503048872,-2419.16,0.00024657,2]
[320697199,1711503048881,-500.0,0.00024657,2]
[320697201,1711503048891,-500.0,0.00024657,2]
[320697203,1711503048900,-500.0,0.00024657,2]
[320697205,1711503048910,-2553.53,0.00024657,2]
[320697207,1711503048919,-500.0,0.00024657,2]
[320697209,1711503048929,-500.0,0.00024657,2]
[320697211,1711503048938,-500.0,0.00024657,2]
[320697213,1711503048947,-500.0,0.00024657,2]
[320697215,1711503048956,-926.61,0.00024657,2]
[320697217,1711503048965,-2017.03,0.00024657,2]